[Event "Grand Prix Romania 1st Stage 2024"]
[Site "Bucuresti"]
[Date "2024.03.24"]
[Round "6.37"]
[White "Filev, Georgi"]
[Black "Caraba, Alexandru"]
[Result "1-0"]
[ECO "B04"]
[WhiteElo "2210"]
[BlackElo "1944"]
[Annotator "RC"]
[PlyCount "63"]
[EventDate "2024.03.20"]
[EventType "swiss"]
[EventCountry "ROU"]
[SourceTitle "playchess.com"]
[Source "ChessBase"]
[SourceQuality "1"]
[TimeControl "900+5"]

1. e4 {[%emt 0:00:03]} Nf6 {[%emt 0:00:10]} 2. e5 {[%emt 0:00:05]} Nd5 {[%emt 0:00:01]} 3. d4 {[%emt 0:00:04]} d6 {[%emt 0:00:02]} 4. Nf3 {[%emt 0:00:04]} g6 {[%emt 0:00:15]} 5. Bc4 {[%emt 0:00:03]} Nb6 {[%emt 0:00:02]} 6. Bb3 {[%emt 0:00:03]} Bg7 {[%emt 0:00:16]} 7. a4 {[%emt 0:00:02]} dxe5 {[%emt 0:02:12]} 8. a5 {[%emt 0:03:57]} N6d7 {[%emt 0:01:10]} 9. Bxf7+ {[%emt 0:00:39]} Kxf7 {[%emt 0:00:02]} 10. Ng5+ {[%emt 0:00:01]} Kg8 {[%emt 0:00:10]} 11. Ne6 {[%emt 0:00:02]} Qe8 {[%emt 0:00:04]} 12. Nxc7 {[%emt 0:00:02]} Qf7 {[%emt 0:00:01]} 13. Nxa8 {[%emt 0:00:02]} exd4 {[%emt 0:00:02]} 14. O-O {[%emt 0:00:24]} Na6 {[%emt 0:00:05]} 15. c3 {[%emt 0:00:36]} dxc3 {[%emt 0:02:23]} 16. Nxc3 {[%emt 0:00:04]} h6 {[%emt 0:00:04]} 17. Be3 {[%emt 0:00:44]} Ndc5 {[%emt 0:02:51]} 18. Nc7 {[%emt 0:01:13]} Nxc7 {[%emt 0:00:40]} 19. Bxc5 {[%emt 0:00:03]} Kh7 {[%emt 0:00:04]} 20. Bxa7 {[%emt 0:00:12]} Be6 {[%emt 0:00:01]} 21. Re1 {[%emt 0:01:04]} Nd5 {[%emt 0:02:28]} 22. Bd4 {[%emt 0:02:33]} Nxc3 {[%emt 0:01:14]} 23. bxc3 {[%emt 0:00:05]} Bd5 {[%emt 0:01:28]} 24. Bxg7 {[%emt 0:00:45]} Kxg7 {[%emt 0:00:01]} 25. Qd4+ {[%emt 0:00:38]} Kh7 {[%emt 0:00:01]} 26. Rad1 {[%emt 0:00:55]} Bc6 {[%emt 0:01:01]} 27. Qc5 {[%emt 0:00:31]} Re8 {[%emt 0:00:02]} 28. a6 {[%emt 0:00:07]} e6 {[%emt 0:00:10]} 29. a7 {[%emt 0:00:10]} Qf4 {[%emt 0:00:18]} 30. Qe5 {[%emt 0:01:09]} Qg4 {[%emt 0:00:05]} 31. f3 {[%emt 0:00:08]} Bxf3 {[%emt 0:00:10]} 32. Rd7+ {[%emt 0:00:02]} 1-0

[Event "Grand Prix Romania 1st Stage 2024"]
[Site "Bucuresti"]
[Date "2024.03.24"]
[Round "6.38"]
[White "Ciolacu, Alessia-Mihaela"]
[Black "Manea, Alexandru"]
[Result "0-1"]
[ECO "D11"]
[WhiteElo "2175"]
[BlackElo "2287"]
[Annotator "RC"]
[PlyCount "122"]
[EventDate "2024.03.20"]
[EventType "swiss"]
[EventCountry "ROU"]
[SourceTitle "playchess.com"]
[Source "ChessBase"]
[SourceQuality "1"]
[TimeControl "900+5"]

1. d4 {[%emt 0:00:03]} d5 {[%emt 0:00:04]} 2. c4 {[%emt 0:00:03]} c6 {[%emt 0:00:01]} 3. Nf3 {[%emt 0:00:03]} Nf6 {[%emt 0:00:01]} 4. e3 {[%emt 0:00:03]} a6 {[%emt 0:00:05]} 5. c5 {[%emt 0:01:58]} Bf5 {[%emt 0:00:20]} 6. Qb3 {[%emt 0:00:05]} Qc7 {[%emt 0:00:04]} 7. Nc3 {[%emt 0:00:18]} Nbd7 {[%emt 0:00:01]} 8. Be2 {[%emt 0:00:59]} Bg4 {[%emt 0:00:03]} 9. Qc2 {[%emt 0:00:21]} Bxf3 {[%emt 0:00:05]} 10. Bxf3 {[%emt 0:00:02]} e5 {[%emt 0:00:00]} 11. Bd2 {[%emt 0:00:11]} Be7 {[%emt 0:00:02]} 12. O-O {[%emt 0:00:05]} h5 {[%emt 0:00:03]} 13. Be2 {[%emt 0:01:14]} g6 {[%emt 0:00:22]} 14. b4 {[%emt 0:00:06]} Ng4 {[%emt 0:00:07]} 15. f3 {[%emt 0:00:24]} exd4 {[%emt 0:00:32]} 16. fxg4 {[%emt 0:00:08]} hxg4 {[%emt 0:00:02]} 17. g3 {[%emt 0:00:40]} dxc3 {[%emt 0:00:06]} 18. Bxc3 {[%emt 0:00:03]} Rh7 {[%emt 0:00:51]} 19. Bxg4 {[%emt 0:00:22]} f5 {[%emt 0:00:01]} 20. Bf3 {[%emt 0:01:27]} Bf6 {[%emt 0:00:16]} 21. a4 {[%emt 0:00:19]} Bxc3 {[%emt 0:00:53]} 22. Qxc3 {[%emt 0:00:02]} Qe5 {[%emt 0:00:01]} 23. Qd2 {[%emt 0:00:39]} Re7 {[%emt 0:00:06]} 24. Rfe1 {[%emt 0:00:22]} Nf6 {[%emt 0:00:03]} 25. b5 {[%emt 0:00:10]} axb5 {[%emt 0:00:02]} 26. Qb4 {[%emt 0:00:40]} Kf7 {[%emt 0:00:15]} 27. Ra3 {[%emt 0:00:13]} Rxa4 {[%emt 0:00:12]} 28. Rxa4 {[%emt 0:00:03]} bxa4 {[%emt 0:00:01]} 29. Kf2 {[%emt 0:01:48]} Ne4+ {[%emt 0:01:54]} 30. Bxe4 {[%emt 0:00:23]} Qxe4 {[%emt 0:00:01]} 31. Qxe4 {[%emt 0:00:10]} Rxe4 {[%emt 0:00:10]} 32. Rb1 {[%emt 0:00:05]} Rc4 {[%emt 0:01:32]} 33. Rxb7+ {[%emt 0:00:05]} Ke6 {[%emt 0:00:02]} 34. Ra7 {[%emt 0:01:27]} Rxc5 {[%emt 0:00:02]} 35. Rxa4 {[%emt 0:00:04]} Rc2+ {[%emt 0:00:00]} 36. Kg1 {[%emt 0:00:26]} Ke5 {[%emt 0:01:19]} 37. g4 {[%emt 0:00:37]} Rc4 {[%emt 0:00:06]} 38. Ra8 {[%emt 0:01:15]} Rxg4+ {[%emt 0:00:01]} 39. Kf2 {[%emt 0:00:02]} Rc4 {[%emt 0:00:03]} 40. Rg8 {[%emt 0:00:17]} Kf6 {[%emt 0:00:00]} 41. Kg3 {[%emt 0:00:06]} Kg5 {[%emt 0:00:02]} 42. Rc8 {[%emt 0:00:07]} Rc3 {[%emt 0:01:12]} 43. h4+ {[%emt 0:00:09]} Kf6 {[%emt 0:00:01]} 44. Kf4 {[%emt 0:00:10]} Rc4+ {[%emt 0:00:02]} 45. Kf3 {[%emt 0:00:03]} Kg7 {[%emt 0:00:52]} 46. Kg3 {[%emt 0:00:19]} c5 {[%emt 0:00:12]} 47. Kf3 {[%emt 0:00:05]} Rxh4 {[%emt 0:00:53]} 48. Rxc5 {[%emt 0:00:02]} d4 {[%emt 0:00:02]} 49. exd4 {[%emt 0:00:13]} Rxd4 {[%emt 0:00:01]} 50. Rc6 {[%emt 0:00:12]} Ra4 {[%emt 0:00:04]} 51. Kg3 {[%emt 0:00:02]} Kh6 {[%emt 0:00:01]} 52. Rc8 {[%emt 0:00:04]} Kh5 {[%emt 0:00:02]} 53. Rc3 {[%emt 0:00:02]} g5 {[%emt 0:00:07]} 54. Kh3 {[%emt 0:00:06]} Rh4+ {[%emt 0:00:09]} 55. Kg2 {[%emt 0:00:02]} f4 {[%emt 0:00:06]} 56. Rc8 {[%emt 0:00:03]} Kg4 {[%emt 0:00:02]} 57. Rc1 {[%emt 0:00:09]} Rh7 {[%emt 0:00:01]} 58. Rc2 {[%emt 0:00:03]} Ra7 {[%emt 0:00:02]} 59. Kh2 {[%emt 0:00:03]} Ra3 {[%emt 0:00:02]} 60. Rg2+ {[%emt 0:00:02]} Kh4 {[%emt 0:00:02]} 61. Rf2 {[%emt 0:00:04]} Ra4 {[%emt 0:00:01]} 0-1

[Event "Grand Prix Romania 1st Stage 2024"]
[Site "Bucuresti"]
[Date "2024.03.24"]
[Round "6.39"]
[White "Antonica, Dragos-Andrei"]
[Black "Sabarez, Iulian"]
[Result "1-0"]
[ECO "D43"]
[WhiteElo "2366"]
[BlackElo "1945"]
[Annotator "RC"]
[PlyCount "57"]
[EventDate "2024.03.20"]
[EventType "swiss"]
[EventCountry "ROU"]
[SourceTitle "playchess.com"]
[Source "ChessBase"]
[SourceQuality "1"]
[TimeControl "900+5"]

1. d4 {[%emt 0:00:03]} Nf6 {[%emt 0:00:09]} 2. c4 {[%emt 0:00:02]} e6 {[%emt 0:00:16]} 3. Nf3 {[%emt 0:00:04]} d5 {[%emt 0:00:01]} 4. Nc3 {[%emt 0:00:02]} Bb4 {[%emt 0:00:02]} 5. Bg5 {[%emt 0:00:06]} h6 {[%emt 0:00:01]} 6. Bh4 {[%emt 0:00:53]} dxc4 {[%emt 0:00:02]} 7. e3 {[%emt 0:00:28]} b5 {[%emt 0:00:03]} 8. Nd2 {[%emt 0:00:12]} c6 {[%emt 0:03:37]} 9. a4 {[%emt 0:00:41]} Bb7 {[%emt 0:00:59]} 10. Be2 {[%emt 0:01:09]} Nbd7 {[%emt 0:02:09]} 11. O-O {[%emt 0:02:40]} a6 {[%emt 0:00:30]} 12. e4 {[%emt 0:03:00]} Be7 {[%emt 0:00:51]} 13. e5 {[%emt 0:00:57]} Nd5 {[%emt 0:00:49]} 14. Bxe7 {[%emt 0:00:01]} Nxc3 {[%emt 0:01:05]} 15. bxc3 {[%emt 0:00:04]} Qxe7 {[%emt 0:00:02]} 16. Ne4 {[%emt 0:00:09]} O-O {[%emt 0:00:23]} 17. Nd6 {[%emt 0:00:06]} Nb6 {[%emt 0:00:31]} 18. Bf3 {[%emt 0:01:12]} Nd5 {[%emt 0:01:08]} 19. Bxd5 {[%emt 0:00:09]} exd5 {[%emt 0:01:50]} 20. f4 {[%emt 0:00:05]} Qc7 {[%emt 0:01:12]} 21. Qg4 {[%emt 0:00:28]} Kh7 {[%emt 0:00:21]} 22. Rf3 {[%emt 0:00:48]} c5 {[%emt 0:00:23]} 23. Rg3 {[%emt 0:00:35]} Rg8 {[%emt 0:00:16]} 24. Qf5+ {[%emt 0:00:37]} g6 {[%emt 0:00:07]} 25. Qf6 {[%emt 0:00:12]} Raf8 {[%emt 0:00:15]} 26. Rh3 {[%emt 0:00:59]} Bc8 {[%emt 0:00:03]} 27. f5 {[%emt 0:00:44]} Bxf5 {[%emt 0:00:04]} 28. Nxf5 {[%emt 0:00:07]} gxf5 {[%emt 0:00:10]} 29. Rxh6# {[%emt 0:00:57]} 1-0

[Event "Grand Prix Romania 1st Stage 2024"]
[Site "Bucuresti"]
[Date "2024.03.24"]
[Round "7.1"]
[White "Sarana, Alexey"]
[Black "Sargsyan, Shant"]
[Result "0-1"]
[ECO "D58"]
[WhiteElo "2699"]
[BlackElo "2637"]
[Annotator "TA"]
[PlyCount "73"]
[EventDate "2024.03.20"]
[EventType "swiss"]
[EventCountry "ROU"]
[SourceTitle "playchess.com"]
[Source "ChessBase"]
[SourceQuality "1"]
[TimeControl "900+5"]

{[%evp 19,73,0,-7,0,20,14,0,10,7,19,6,8,0,0,17,47,29,0,8,7,0,0,0,11,21,0,0,0,0,0,0,0,63,29,21,22,31,35,102,89,82,86,65,95,90,73,104,47,127,114,127,113,114,95,127,48]} 1. d4 {[%emt 0:00:01]} d5 {[%emt 0:00:01]} 2. c4 {[%emt 0:00:01]} e6 {[%emt 0:00:02]} 3. Nc3 {[%emt 0:00:01]} Nf6 {[%emt 0:00:01]} 4. Bg5 {[%emt 0:00:02]} Be7 {[%emt 0:00:04]} 5. e3 {[%emt 0:00:01]} h6 {[%emt 0:00:01]} 6. Bh4 {[%emt 0:00:01]} O-O {[%emt 0:00:11]} 7. Qc2 {[%emt 0:00:03]} b6 {[%emt 0:00:04]} 8. Nf3 {[%emt 0:00:01]} Bb7 {[%emt 0:00:31]} 9. Bxf6 {[%emt 0:00:03]} Bxf6 {[%emt 0:00:01]} 10. cxd5 {[%emt 0:00:01]} exd5 {[%emt 0:00:02]} 11. Rd1 {[%emt 0:00:02]} Nd7 {[%emt 0:00:29]} 12. g3 {[%emt 0:00:02]} c5 {[%emt 0:00:05]} 13. Bg2 {[%emt 0:00:32] The position is equal.} Rc8 {[%emt 0:00:18][%cal Ob6b5]} 14. O-O {[%emt 0:00:07]} Qe7 {[%emt 0:00:19]} (14... b5 {is more complex.} 15. dxc5 Nxc5 16. Nxb5 Ba6) 15. Rfe1 {[%emt 0:02:18]} Rfd8 {[%emt 0:00:21]} 16. h4 {[%emt 0:01:09]} a6 {[%emt 0:00:43]} 17. Nh2 {[%emt 0:00:17][%cal Bf3h2,Bh2g4,Bg4e5,Be5d3,Bd3b4][%mdl 32]} Qe6 {[%emt 0:01:33]} 18. Qe2 {[%emt 0:01:26]} g6 {[%emt 0:02:51]} 19. Qf3 {[%emt 0:02:06][%cal Rc3d5]} Nf8 {[%emt 0:01:50]} 20. Ng4 {[%emt 0:00:26]} Bg7 {[%emt 0:00:02]} 21. Qf4 {[%emt 0:00:52]} Kh7 {[%emt 0:01:16]} 22. Ne5 {[%emt 0:00:28]} (22. e4 {seems wilder.} h5 23. Ne5 Bxe5 24. exd5 Bxf4 25. dxe6 Bxg2 26. e7) 22... f6 {[%emt 0:00:29][%cal Bf7f6,Bf6f5,Bf5e4][%mdl 32]} 23. Nd3 {[%emt 0:00:14]} c4 {[%emt 0:00:35]} 24. Nb4 {[%emt 0:01:02]} a5 {[%emt 0:00:37]} 25. Nc2 {[%emt 0:00:02]} g5 {[%emt 0:00:13]} (25... f5 $11) 26. Qf3 {[%emt 0:00:53]} g4 $1 {[%emt 0:00:50]} 27. Qe2 {[%emt 0:00:01]} f5 {[%emt 0:00:02]} 28. f3 {[%emt 0:00:12]} h5 {[%emt 0:00:44]} ({Black should try} 28... Qd6 $14) 29. e4 $16 {[%emt 0:00:13] aiming for exf5.} gxf3 {[%emt 0:02:49]} 30. Qxf3 {[%emt 0:00:01]} fxe4 {[%emt 0:00:01]} 31. Qxh5+ {[%emt 0:00:02]} Qh6 {[%emt 0:00:01]} 32. Qf5+ {[%emt 0:02:10]} Qg6 {[%emt 0:00:03]} 33. Bh3 {[%emt 0:00:18]} (33. Rf1 $1 $16) 33... Rc7 {[%emt 0:00:12]} (33... Rc6 $1 $14) 34. Ne3 {[%emt 0:01:15] White is better.} Bh6 {[%emt 0:00:16]} 35. Nexd5 {[%emt 0:01:08] A dynamic duo of knights.} Rf7 {[%emt 0:00:16] [#]} 36. Qxg6+ (36. Qxe4 $2 {too greedy.} Qxe4 37. Rxe4 Bxd5 38. Nxd5 Rxd5 $19) 36... Nxg6 {[%emt 0:00:00] [#]} 37. Rxe4 {[%emt 0:00:39][%mdl 32768] Weighted Error Value: White=0.08 (flawless) /Black=0.13 (very precise) .  Mistake:       	White=2     	Black=3      Inaccurate:     	White=1     	Black=1      OK:         	White=12    	Black=12     Best:        	White=1     	Black=2      Strong:       	---       	Black=1     . Loss on time!?} 0-1

[Event "Grand Prix Romania 1st Stage 2024"]
[Site "Bucuresti"]
[Date "2024.03.24"]
[Round "7.2"]
[White "Mamedov, Rauf"]
[Black "Kozak, Adam"]
[Result "1/2-1/2"]
[ECO "C50"]
[WhiteElo "2651"]
[BlackElo "2607"]
[Annotator "TA"]
[PlyCount "61"]
[EventDate "2024.03.20"]
[EventType "swiss"]
[EventCountry "ROU"]
[SourceTitle "playchess.com"]
[Source "ChessBase"]
[SourceQuality "1"]
[TimeControl "900+5"]

{[%evp 9,61,16,21,13,6,0,0,0,41,43,52,36,26,0,0,0,11,6,72,18,68,51,63,77,46,34,32,32,34,36,42,35,41,45,58,1,56,37,42,50,68,44,51,0,0,0,11,-14,-13,-52,-50,-86,-27,-88]} 1. e4 {[%emt 0:00:02]} e5 {[%emt 0:00:06]} 2. Nf3 {[%emt 0:00:02]} Nc6 {[%emt 0:00:02]} 3. Bc4 {[%emt 0:00:03]} Bc5 {[%emt 0:00:23]} 4. Nc3 {[%emt 0:00:05]} d6 {[%emt 0:00:42]} 5. Na4 {[%emt 0:00:33]} Qf6 {[%emt 0:05:29]} 6. Nxc5 {[%emt 0:01:41]} dxc5 {[%emt 0:00:02]} 7. c3 {[%emt 0:00:26]} Nge7 {[%emt 0:01:02]} 8. d3 {[%emt 0:01:15] The position is equal.} Bg4 {[%emt 0:01:30][%cal Bc8g4,Bg4h5,Bh5g6][%mdl 32]} 9. h3 {[%emt 0:00:15]} Bh5 {[%emt 0:00:06]} 10. g4 {[%emt 0:01:17]} Bg6 {[%emt 0:00:02]} 11. Be3 {[%emt 0:00:40]} O-O-O $1 {[%emt 0:00:37] [#] And now ...Bxe4 would win.} 12. Qe2 {[%emt 0:00:29]} (12. Bxc5 $2 {perishes.} Bxe4 13. g5 Qf5 $19 (13... Qxf3 $2 14. Qxf3 Bxf3 15. Rg1 $19)) (12. g5 $5 Qd6 $8 13. Nd2 $11) 12... Qd6 {[%emt 0:03:05]} 13. Nh4 {[%emt 0:01:07]} a6 {[%emt 0:01:51]} (13... f6 $11) 14. O-O-O {[%emt 0:02:25]} ({White should play} 14. Nxg6 $16 Nxg6 15. Bxf7) 14... f6 {[%emt 0:00:01]} (14... Na5 $1 $11) 15. Nf5 {[%emt 0:00:16]} Bxf5 16. gxf5 {[%emt 0:00:01] Qg4 would now be deadly.} g6 {[%emt 0:00:03]} 17. Qf3 {[%emt 0:03:00]} gxf5 18. exf5 {[%emt 0:00:01]} Nd5 {[%emt 0:00:02]} 19. Rhg1 {[%emt 0:00:04]} Nf4 {[%emt 0:00:54]} 20. Kb1 {[%emt 0:00:19]} Kb8 {[%emt 0:00:20]} 21. Bb3 {[%emt 0:00:42]} Na5 {[%emt 0:00:23]} 22. Bxf4 {[%emt 0:01:06]} ({White should try} 22. d4 $14 cxd4 23. cxd4 (23. Bxf4 Nxb3 24. Bg3 Na5 $11) 23... Nxb3 24. dxe5 Qxe5 25. Qxf4 (25. Rxd8+ Rxd8 26. Qxf4 Qxf4 $16) 25... Qxf4 26. Bxf4) 22... exf4 {[%emt 0:00:05] Black is weak on the light squares} (22... Nxb3 $1 $11 23. axb3 exf4) 23. Be6 $14 {[%emt 0:00:05]} Nc6 {[%emt 0:00:07][%cal Ba5c6,Bc6e5,Be5d3][%mdl 32]} 24. Qe4 {[%emt 0:00:01]} Ne5 {[%emt 0:00:05][%cal Re5d3]} 25. Qxf4 {[%emt 0:00:21] White is more active.} Nxd3 {[%emt 0:00:03]} 26. Qe3 {[%emt 0:00:43] [#] aiming for Rg3.} (26. Qxd6 {simplifies} Rxd6 27. Rg7 h5 28. h4) 26... b5 {[%emt 0:00:01]} 27. c4 {[%emt 0:00:02] Black must now prevent Rg3.} Qd4 $1 {[%emt 0:00:01]} 28. Qxd4 {[%emt 0:00:01]} Rxd4 {[%emt 0:00:01]} 29. cxb5 {[%emt 0:00:07]} axb5 {[%emt 0:00:02][%cal Oh7h5]} 30. Rd2 {[%emt 0:00:05]} c4 {[%emt 0:00:12]} (30... Kb7 $17) 31. Rg7 {[%emt 0:00:05] Weighted Error Value: White=0.19 (very precise) /Black=0.15 (very precise) .  Mistake:       	White=3     	Black=4      Inaccurate:     	White=4     	Black=1      OK:         	White=7     	Black=6      Best:        	---       	Black=3      Strong:       	---       	Black=2} (31. a4 $11 {remains equal.}) 1/2-1/2

[Event "Grand Prix Romania 1st Stage 2024"]
[Site "Bucuresti"]
[Date "2024.03.24"]
[Round "7.3"]
[White "Chigaev, Maksim"]
[Black "Motylev, Alexander"]
[Result "1/2-1/2"]
[ECO "C50"]
[WhiteElo "2617"]
[BlackElo "2611"]
[Annotator "TA"]
[PlyCount "33"]
[EventDate "2024.03.20"]
[EventType "swiss"]
[EventCountry "ROU"]
[SourceTitle "playchess.com"]
[Source "ChessBase"]
[SourceQuality "1"]
[TimeControl "900+5"]

{[%evp 9,33,9,20,25,14,12,22,20,22,23,23,20,6,7,19,9,17,10,0,0,7,0,0,-2,-6,-13]} 1. e4 {[%emt 0:00:03]} e5 {[%emt 0:00:02]} 2. Nf3 {[%emt 0:00:03]} Nc6 {[%emt 0:00:01]} 3. Bc4 {[%emt 0:00:02]} Nf6 {[%emt 0:00:10]} 4. d3 {[%emt 0:00:03]} Bc5 {[%emt 0:00:07]} 5. a4 {[%emt 0:00:02]} O-O {[%emt 0:00:21]} 6. a5 {[%emt 0:00:17]} a6 {[%emt 0:00:23]} 7. O-O {[%emt 0:00:09]} d6 {[%emt 0:00:10]} 8. c3 {[%emt 0:00:07]} Be6 {[%emt 0:00:35]} 9. Bxe6 {[%emt 0:00:43]} fxe6 {[%emt 0:00:02]} 10. Be3 {[%emt 0:00:02]} (10. b4 $5 Ba7 $8 11. Qb3 $11) 10... Bxe3 {[%emt 0:00:50] The position is equal.} 11. fxe3 {[%emt 0:00:02]} Qd7 {[%emt 0:00:43]} 12. Nbd2 {[%emt 0:14:32]} h6 13. d4 {[%emt 0:00:00]} exd4 {[%emt 0:01:16]} 14. exd4 {[%emt 0:00:00]} e5 {[%emt 0:02:57]} 15. dxe5 {[%emt 0:00:00]} Nxe5 {[%emt 0:00:08]} 16. Nxe5 {[%emt 0:00:00]} dxe5 {[%emt 0:00:02]} 17. Qb3+ {[%emt 0:00:00] Not much happened in this game.   Weighted Error Value: White=0.02 (flawless) /Black=0.04 (flawless) .  OK:         	White=3     	Black=3} 1/2-1/2

[Event "Grand Prix Romania 1st Stage 2024"]
[Site "Bucuresti"]
[Date "2024.03.24"]
[Round "7.4"]
[White "Stoleriu, George"]
[Black "Ponomariov, Ruslan"]
[Result "1/2-1/2"]
[ECO "B52"]
[WhiteElo "2391"]
[BlackElo "2646"]
[Annotator "TA"]
[PlyCount "112"]
[EventDate "2024.03.20"]
[EventType "swiss"]
[EventCountry "ROU"]
[SourceTitle "playchess.com"]
[Source "ChessBase"]
[SourceQuality "1"]
[TimeControl "900+5"]

{[%evp 28,112,4,0,5,0,0,0,0,0,0,0,3,0,20,18,26,22,27,24,29,16,41,14,10,7,10,0,0,0,0,-32,-4,-140,0,0,0,3,24,-6,-6,-6,-9,-10,0,0,0,0,0,0,0,0,0,0,0,0,0,0,0,0,0,0,0,0,0,0,0,0,0,0,0,0,0,0,0,0,0,0,0,0,0,0,0,0,0,0,0]} 1. e4 {[%emt 0:00:01]} c5 {[%emt 0:00:01]} 2. Nf3 {[%emt 0:00:02]} d6 {[%emt 0:00:01]} 3. Bb5+ {[%emt 0:00:02]} Bd7 {[%emt 0:00:02]} 4. Bxd7+ {[%emt 0:00:28]} Nxd7 {[%emt 0:00:01]} 5. O-O {[%emt 0:00:02]} Ngf6 {[%emt 0:00:02]} 6. Qe2 {[%emt 0:00:06]} e6 {[%emt 0:00:06]} 7. b3 {[%emt 0:00:44]} Be7 {[%emt 0:00:16]} 8. Bb2 {[%emt 0:00:01]} O-O {[%emt 0:00:08]} 9. c4 {[%emt 0:00:02]} a6 {[%emt 0:00:41]} 10. Nc3 {[%emt 0:00:08] B52: Sizilianisch (Rossolimo-Variante).} Ne5 {[%emt 0:00:49]} 11. Rfd1 {[%emt 0:01:00]} Nxf3+ {[%emt 0:00:12]} 12. Qxf3 {[%emt 0:00:01]} Qb6 $146 {[%emt 0:00:05]} ({Predecessor:} 12... b5 13. cxb5 axb5 14. Nxb5 d5 15. exd5 Qxd5 16. Qxd5 Nxd5 17. d4 Rfc8 18. dxc5 Bxc5 {1-0 Tomov,G (2267)-Rene,B (2254) FICGS class M 000009 email 2007 (1)}) 13. h3 {[%emt 0:05:24]} Rfd8 {[%emt 0:00:10]} 14. Qe3 {[%emt 0:00:11]} Rac8 {[%emt 0:02:12]} 15. d4 {[%emt 0:00:55]} cxd4 {[%emt 0:00:05]} 16. Qxd4 {[%emt 0:00:03]} Qa5 {[%emt 0:01:27]} 17. Qd2 {[%emt 0:01:51]} Qc5 {[%emt 0:01:17]} 18. Rac1 {[%emt 0:00:27]} h6 {[%emt 0:00:41]} 19. Qd4 {[%emt 0:02:07]} Qxd4 {[%emt 0:00:58]} 20. Rxd4 {[%emt 0:00:01]} Nd7 {[%emt 0:00:04]} 21. Rcd1 {[%emt 0:00:25]} Nc5 {[%emt 0:00:30]} 22. R4d2 {[%emt 0:00:35]} b6 {[%emt 0:01:27]} 23. f3 {[%emt 0:00:51]} Kf8 {[%emt 0:00:02]} 24. Kf2 {[%emt 0:00:23]} Ke8 {[%emt 0:00:04]} 25. Ke3 {[%emt 0:00:03]} g6 {[%emt 0:00:18]} 26. f4 {[%emt 0:00:27]} Rb8 {[%emt 0:00:40]} 27. Ba3 {[%emt 0:00:23]} Rdc8 {[%emt 0:00:30]} 28. Ne2 {[%emt 0:00:24]} b5 {[%emt 0:00:19]} 29. cxb5 {[%emt 0:00:01]} axb5 {[%emt 0:00:02]} (29... Nxe4 $5 30. Kxe4 d5+ 31. Kd3 Bxa3 32. bxa6 Ra8 $16) 30. Rc1 {[%emt 0:00:04] [#]} (30. Bb2 $11 {bleibt in der Remisbreite.}) 30... b4 {[%emt 0:00:10]} (30... Nxe4 $1 $17 31. Kxe4 (31. Rxc8+ Rxc8 32. Kxe4 d5+ 33. Kd3 Bxa3 $19) 31... d5+ 32. Kd3 Bxa3 33. Rxc8+ Rxc8) 31. Bb2 $11 {[%emt 0:00:00]} f5 {[%emt 0:04:20]} 32. exf5 {[%emt 0:00:04]} gxf5 {[%emt 0:00:00]} 33. Rdc2 {[%emt 0:00:11]} h5 {[%emt 0:00:00]} 34. Bd4 {[%emt 0:00:01]} Kf7 {[%emt 0:00:00]} 35. Bxc5 {[%emt 0:00:05]} dxc5 {[%emt 0:00:00]} 36. Ng1 {[%emt 0:00:21]} e5 {[%emt 0:00:00]} 37. Nf3 {[%emt 0:00:05]} e4 {[%emt 0:00:00]} 38. Ne5+ {[%emt 0:00:03]} Ke6 {[%emt 0:00:00]} 39. g4 {[%emt 0:00:07]} hxg4 {[%emt 0:00:00]} 40. hxg4 {[%emt 0:00:01]} Rh8 {[%emt 0:00:00]} 41. gxf5+ {[%emt 0:00:09]} Kxf5 {[%emt 0:00:00]} 42. Nc6 {[%emt 0:00:01]} Rh3+ {[%emt 0:00:00]} 43. Ke2 {[%emt 0:00:00]} Rb7 {[%emt 0:00:00]} 44. Nxe7+ {[%emt 0:00:02]} Rxe7 {[%emt 0:00:00]} 45. Rxc5+ {[%emt 0:00:00]} Kxf4 {[%emt 0:00:00]} 46. Rf1+ {[%emt 0:00:11]} Rf3 {[%emt 0:00:00]} 47. Rh1 {[%emt 0:00:16]} Ra7 {[%emt 0:00:00]} 48. Rc2 {[%emt 0:00:06]} Re3+ {[%emt 0:00:00]} 49. Kf2 $1 {[%emt 0:00:02]} Rc3 {[%emt 0:00:00]} 50. Rh4+ {[%emt 0:00:09]} Kf5 {[%emt 0:00:52]} 51. Re2 {[%emt 0:00:00]} Rf3+ {[%emt 0:00:11]} 52. Ke1 {[%emt 0:00:05]} Re7 {[%emt 0:00:06]} 53. Rh5+ {[%emt 0:00:05]} Kf4 {[%emt 0:00:02]} 54. Rh4+ {[%emt 0:00:01]} Kf5 {[%emt 0:00:02]} 55. Rh5+ {[%emt 0:00:01]} Kf4 {[%emt 0:00:20]} 56. Rh4+ {[%emt 0:00:01]} Kf5 {[%emt 0:00:01]} 1/2-1/2